[Event "Titled Tuesday Blitz April 25 Early 2023"]
[White "Starozhilov, Leonid"]
[Black "Shuvalov, Evgenij"]
[WhiteFideId "14106752"]
[BlackFideId "4187237"]
[WhiteElo "2352"]
[BlackElo "2080"]
[Result "1-0"]
[Round "04"]
[TimeControl "180+2"]
[Date "2023.04.25"]
[WhiteClock "0:00:11"]
[BlackClock "0:00:59"]

1. e4 {[%clk 0:02:44]}  e6 {[%clk 0:02:43]} 2. d3 {[%clk 0:02:35]}  d5 {[%clk 0:02:43]} 3. Nd2 {[%clk 0:02:36]}  c5 {[%clk 0:02:42]} 4. Ngf3 {[%clk 0:02:36]}  Nc6 {[%clk 0:02:43]} 5. c3 {[%clk 0:02:36]}  Nf6 {[%clk 0:02:43]} 6. e5 {[%clk 0:02:34]}  Nd7 {[%clk 0:02:43]} 7. d4 {[%clk 0:02:34]}  Qb6 {[%clk 0:02:39]} 8. Nb1 {[%clk 0:01:59]}  g6 {[%clk 0:02:34]} 9. Be2 {[%clk 0:01:50]}  Bg7 {[%clk 0:02:34]} 10. O-O {[%clk 0:01:49]}  O-O {[%clk 0:02:34]} 11. a3 {[%clk 0:01:26]}  c4 {[%clk 0:02:27]} 12. Qc2 {[%clk 0:01:18]}  Na5 {[%clk 0:02:22]} 13. Nbd2 {[%clk 0:01:12]}  Qc6 {[%clk 0:02:22]} 14. Re1 {[%clk 0:00:34]}  Nb6 {[%clk 0:02:18]} 15. Nf1 {[%clk 0:00:32]}  Bd7 {[%clk 0:02:18]} 16. Bg5 {[%clk 0:00:30]}  Qa4 {[%clk 0:02:15]} 17. Qb1 {[%clk 0:00:27]}  Nb3 {[%clk 0:02:14]} 18. Ra2 {[%clk 0:00:27]}  Rae8 {[%clk 0:02:06]} 19. Bd1 {[%clk 0:00:27]}  Qc6 {[%clk 0:02:05]} 20. N1d2 {[%clk 0:00:24]}  Nxd2 {[%clk 0:02:03]} 21. Bxd2 {[%clk 0:00:23]}  Qc7 {[%clk 0:02:02]} 22. Ra1 {[%clk 0:00:23]}  Ba4 {[%clk 0:02:00]} 23. Be2 {[%clk 0:00:23]}  f6 {[%clk 0:01:50]} 24. Bf4 {[%clk 0:00:20]}  f5 {[%clk 0:01:44]} 25. h4 {[%clk 0:00:20]}  h6 {[%clk 0:01:43]} 26. Qc1 {[%clk 0:00:20]}  Kh7 {[%clk 0:01:42]} 27. g3 {[%clk 0:00:20]}  Rh8 {[%clk 0:01:41]} 28. Kg2 {[%clk 0:00:20]}  Kg8 {[%clk 0:01:42]} 29. Rh1 {[%clk 0:00:20]}  Kf7 {[%clk 0:01:42]} 30. h5 {[%clk 0:00:15]}  g5 {[%clk 0:01:40]} 31. Nxg5+ {[%clk 0:00:16]}  hxg5 {[%clk 0:01:40]} 32. Bxg5 {[%clk 0:00:17]}  Reg8 {[%clk 0:01:35]} 33. h6 {[%clk 0:00:16]}  Bxe5 {[%clk 0:01:25]} 34. dxe5 {[%clk 0:00:16]}  Qxe5 {[%clk 0:01:23]} 35. Bf3 {[%clk 0:00:13]}  Bc6 {[%clk 0:01:20]} 36. Bf4 {[%clk 0:00:13]}  Qf6 {[%clk 0:01:19]} 37. Bh5+ {[%clk 0:00:10]}  Ke7 {[%clk 0:01:16]} 38. Bf3 {[%clk 0:00:10]}  e5 {[%clk 0:01:14]} 39. Bxe5 {[%clk 0:00:10]}  Qxe5 {[%clk 0:01:11]} 40. Re1 {[%clk 0:00:11]}  Qxe1 {[%clk 0:01:10]} 41. Qxe1+ {[%clk 0:00:11]}  Kd7 {[%clk 0:01:10]} 42. Qe3 {[%clk 0:00:11]}  d4 {[%clk 0:01:08]} 43. Qxd4+ {[%clk 0:00:11]}  Kc8 {[%clk 0:01:09]} 44. Bxc6 {[%clk 0:00:11]}  bxc6 {[%clk 0:01:09]} 45. Qf6 {[%clk 0:00:11]}  Kb7 {[%clk 0:01:06]} 46. Re1 {[%clk 0:00:10]}  Rh7 {[%clk 0:01:04]} 47. Re7+ {[%clk 0:00:09]}  Rxe7 {[%clk 0:01:04]} 48. Qxe7+ {[%clk 0:00:10]}  Ka6 {[%clk 0:01:05]} 49. h7 {[%clk 0:00:11]}  Rh8 {[%clk 0:01:05]} 50. Qg7 {[%clk 0:00:11]}  Re8 {[%clk 0:01:02]} 51. h8=Q {[%clk 0:00:11]}  Rxh8 {[%clk 0:01:03]} 52. Qxh8 {[%clk 0:00:11]}  Nd5 {[%clk 0:01:04]} 53. Qd4 {[%clk 0:00:11]}  Kb5 {[%clk 0:01:04]} 54. a4+ {[%clk 0:00:11]}  Kxa4 {[%clk 0:01:03]} 55. Qxc4+ {[%clk 0:00:11]}  Ka5 {[%clk 0:01:03]} 56. Qxc6 {[%clk 0:00:12]}  Nb6 {[%clk 0:01:03]} 57. b4+ {[%clk 0:00:11]}  Ka6 {[%clk 0:01:02]} 58. c4 {[%clk 0:00:12]}  f4 {[%clk 0:01:00]} 59. Qb5+ {[%clk 0:00:06]}  Kb7 {[%clk 0:01:01]} 60. c5 {[%clk 0:00:07]}  fxg3 {[%clk 0:01:00]} 61. cxb6 {[%clk 0:00:07]}  axb6 {[%clk 0:00:59]} 62. Qd7+ {[%clk 0:00:07]}  Ka6 {[%clk 0:01:00]} 63. Qa4+ {[%clk 0:00:06]}  Kb7 {[%clk 0:01:00]} 64. b5 {[%clk 0:00:07]}  gxf2 {[%clk 0:01:00]} 65. Qc4 {[%clk 0:00:08]}  f1=Q+ {[%clk 0:00:59]} 66. Kxf1 {[%clk 0:00:07]}  Kb8 {[%clk 0:00:59]} 67. Qf7 {[%clk 0:00:08]}  Ka8 {[%clk 0:00:57]} 68. Kf2 {[%clk 0:00:08]}  Kb8 {[%clk 0:00:58]} 69. Kf3 {[%clk 0:00:09]}  Ka8 {[%clk 0:00:58]} 70. Ke4 {[%clk 0:00:10]}  Kb8 {[%clk 0:00:59]} 71. Kd5 {[%clk 0:00:11]}  Ka8 {[%clk 0:00:59]} 72. Kc6 {[%clk 0:00:12]}  Kb8 {[%clk 0:01:00]} 73. Qg7 {[%clk 0:00:11]}  Ka8 {[%clk 0:00:58]} 74. Kxb6 {[%clk 0:00:11]}  Kb8 {[%clk 0:00:58]} 75. Qc7+ {[%clk 0:00:10]}  Ka8 {[%clk 0:00:59]} 76. Qc6+ {[%clk 0:00:11]}  Kb8 {[%clk 0:00:59]} 77. Qb7# {[%clk 0:00:11]} 1-0


[Site "https://www.chess.com"]

[Event "Titled Tuesday Blitz April 25 Early 2023"]
[White "Rendle, Thomas E"]
[Black "Kubatko, Ivan"]
[WhiteFideId "408760"]
[BlackFideId "24111473"]
[WhiteElo "2428"]
[BlackElo "2285"]
[Result "1-0"]
[Round "04"]
[TimeControl "180+2"]
[Date "2023.04.25"]
[WhiteClock "0:00:54"]
[BlackClock "0:00:16"]

1. e4 {[%clk 0:03:00]}  d5 {[%clk 0:02:59]} 2. exd5 {[%clk 0:02:57]}  Qxd5 {[%clk 0:03:00]} 3. Nf3 {[%clk 0:02:57]}  Nf6 {[%clk 0:03:00]} 4. d4 {[%clk 0:02:54]}  Bg4 {[%clk 0:03:00]} 5. Be2 {[%clk 0:02:54]}  Nc6 {[%clk 0:02:59]} 6. Be3 {[%clk 0:02:53]}  O-O-O {[%clk 0:02:58]} 7. Nbd2 {[%clk 0:02:53]}  Qf5 {[%clk 0:02:13]} 8. c4 {[%clk 0:02:46]}  Nb4 {[%clk 0:01:56]} 9. O-O {[%clk 0:02:41]}  Nd3 {[%clk 0:01:41]} 10. Qa4 {[%clk 0:02:16]}  a6 {[%clk 0:01:37]} 11. Bxd3 {[%clk 0:02:05]}  Qxd3 {[%clk 0:01:37]} 12. Ne5 {[%clk 0:02:06]}  Qf5 {[%clk 0:00:54]} 13. Nxf7 {[%clk 0:02:05]}  Rg8 {[%clk 0:00:40]} 14. Nxd8 {[%clk 0:02:05]}  Kxd8 {[%clk 0:00:41]} 15. f3 {[%clk 0:01:59]}  Bh5 {[%clk 0:00:39]} 16. Rac1 {[%clk 0:01:57]}  g5 {[%clk 0:00:38]} 17. Qc2 {[%clk 0:01:57]}  Qd7 {[%clk 0:00:36]} 18. Ne4 {[%clk 0:01:56]}  Bg6 {[%clk 0:00:33]} 19. Nc5 {[%clk 0:01:49]}  Qc8 {[%clk 0:00:27]} 20. Qe2 {[%clk 0:01:35]}  b6 {[%clk 0:00:27]} 21. Ne4 {[%clk 0:01:29]}  h6 {[%clk 0:00:24]} 22. Bf2 {[%clk 0:01:18]}  Bg7 {[%clk 0:00:23]} 23. Rce1 {[%clk 0:01:11]}  Re8 {[%clk 0:00:23]} 24. Bg3 {[%clk 0:01:11]}  Nh5 {[%clk 0:00:23]} 25. Be5 {[%clk 0:01:10]}  Bf8 {[%clk 0:00:23]} 26. d5 {[%clk 0:01:05]}  Qd7 {[%clk 0:00:20]} 27. c5 {[%clk 0:01:02]}  b5 {[%clk 0:00:21]} 28. Rd1 {[%clk 0:00:59]}  Qf5 {[%clk 0:00:21]} 29. Ng3 {[%clk 0:00:57]}  Qf7 {[%clk 0:00:17]} 30. Nxh5 {[%clk 0:00:56]}  Bxh5 {[%clk 0:00:18]} 31. Bg3 {[%clk 0:00:54]}  Bg6 {[%clk 0:00:16]} 32. Qe5 {[%clk 0:00:54]} 1-0


[Site "https://www.chess.com"]

[Event "Titled Tuesday Blitz April 25 Early 2023"]
[White "Golubev, Mikhail"]
[Black "Schnaider, Ilan"]
[WhiteFideId "14100983"]
[BlackFideId "169013"]
[WhiteElo "2374"]
[BlackElo "2224"]
[Result "1-0"]
[Round "04"]
[TimeControl "180+2"]
[Date "2023.04.25"]
[WhiteClock "0:00:10"]
[BlackClock "0:00:03"]

1. e4 {[%clk 0:03:00]}  c5 {[%clk 0:02:59]} 2. Nf3 {[%clk 0:03:00]}  d6 {[%clk 0:02:59]} 3. d4 {[%clk 0:03:01]}  cxd4 {[%clk 0:03:00]} 4. Nxd4 {[%clk 0:03:01]}  Nf6 {[%clk 0:03:00]} 5. Nc3 {[%clk 0:03:01]}  a6 {[%clk 0:03:00]} 6. Bc4 {[%clk 0:03:01]}  e6 {[%clk 0:02:59]} 7. O-O {[%clk 0:03:01]}  b5 {[%clk 0:02:59]} 8. Bb3 {[%clk 0:03:01]}  Bb7 {[%clk 0:02:59]} 9. Re1 {[%clk 0:03:00]}  Be7 {[%clk 0:02:59]} 10. Bxe6 {[%clk 0:02:59]}  fxe6 {[%clk 0:02:54]} 11. Nxe6 {[%clk 0:03:00]}  Qd7 {[%clk 0:02:51]} 12. Nxg7+ {[%clk 0:02:59]}  Kd8 {[%clk 0:02:46]} 13. Nd5 {[%clk 0:02:20]}  Rg8 {[%clk 0:01:50]} 14. Nxe7 {[%clk 0:01:53]}  Rxg7 {[%clk 0:01:48]} 15. Nf5 {[%clk 0:01:52]}  Rxg2+ {[%clk 0:01:46]} 16. Kxg2 {[%clk 0:01:52]}  Qxf5 {[%clk 0:01:46]} 17. Qxd6+ {[%clk 0:01:40]}  Nbd7 {[%clk 0:01:46]} 18. f3 {[%clk 0:01:36]}  Qg6+ {[%clk 0:00:56]} 19. Kh1 {[%clk 0:01:33]}  Qh5 {[%clk 0:00:47]} 20. Qg3 {[%clk 0:01:17]}  Ke7 {[%clk 0:00:37]} 21. Bg5 {[%clk 0:00:55]}  Rg8 {[%clk 0:00:18]} 22. Bxf6+ {[%clk 0:00:55]}  Nxf6 {[%clk 0:00:19]} 23. Qc7+ {[%clk 0:00:51]}  Nd7 {[%clk 0:00:18]} 24. Re3 {[%clk 0:00:21]}  Qg5 {[%clk 0:00:14]} 25. Re2 {[%clk 0:00:21]}  Ba8 {[%clk 0:00:09]} 26. Rd1 {[%clk 0:00:20]}  Rd8 {[%clk 0:00:04]} 27. Red2 {[%clk 0:00:18]}  Bc6 {[%clk 0:00:01]} 28. Qxc6 {[%clk 0:00:15]}  Ne5 {[%clk 0:00:02]} 29. Qc7+ {[%clk 0:00:15]}  Ke6 {[%clk 0:00:01]} 30. Rxd8 {[%clk 0:00:13]}  Nxf3 {[%clk 0:00:01]} 31. R8d6+ {[%clk 0:00:11]}  Ke5 {[%clk 0:00:02]} 32. R6d5+ {[%clk 0:00:11]}  Kxe4 {[%clk 0:00:02]} 33. Rxg5 {[%clk 0:00:11]}  Nxg5 {[%clk 0:00:03]} 34. Qe7+ {[%clk 0:00:10]}  Kf5 {[%clk 0:00:03]} 35. Rf1+ {[%clk 0:00:10]}  Kg4 {[%clk 0:00:03]} 36. Rg1+ {[%clk 0:00:10]}  Kf3 {[%clk 0:00:03]} 37. Rxg5 {[%clk 0:00:10]} 1-0


[Site "https://www.chess.com"]

[Event "Titled Tuesday Blitz April 25 Early 2023"]
[White "Matveeva, Olga"]
[Black "Brunner, Nicolas"]
[WhiteFideId "24107018"]
[BlackFideId "620246"]
[WhiteElo "2056"]
[BlackElo "2327"]
[Result "0-1"]
[Round "04"]
[TimeControl "180+2"]
[Date "2023.04.25"]
[WhiteClock "0:00:03"]
[BlackClock "0:00:12"]

1. d4 {[%clk 0:03:00]}  d5 {[%clk 0:02:59]} 2. c4 {[%clk 0:03:01]}  e6 {[%clk 0:02:59]} 3. Nf3 {[%clk 0:03:02]}  Nf6 {[%clk 0:02:59]} 4. g3 {[%clk 0:03:02]}  Bb4+ {[%clk 0:02:58]} 5. Bd2 {[%clk 0:03:02]}  Be7 {[%clk 0:02:58]} 6. Bg2 {[%clk 0:03:02]}  O-O {[%clk 0:02:58]} 7. O-O {[%clk 0:03:03]}  c6 {[%clk 0:02:58]} 8. Qc2 {[%clk 0:03:03]}  Nbd7 {[%clk 0:02:57]} 9. Rd1 {[%clk 0:03:04]}  b6 {[%clk 0:02:57]} 10. Bf4 {[%clk 0:03:04]}  Bb7 {[%clk 0:02:50]} 11. Ne5 {[%clk 0:03:04]}  Rc8 {[%clk 0:02:41]} 12. Nc3 {[%clk 0:03:00]}  Nh5 {[%clk 0:02:38]} 13. Be3 {[%clk 0:02:41]}  f5 {[%clk 0:02:35]} 14. f4 {[%clk 0:02:24]}  Nhf6 {[%clk 0:02:33]} 15. Rac1 {[%clk 0:02:22]}  Ne4 {[%clk 0:02:30]} 16. Nxe4 {[%clk 0:02:21]}  fxe4 {[%clk 0:02:26]} 17. cxd5 {[%clk 0:02:05]}  Nxe5 {[%clk 0:02:15]} 18. dxe5 {[%clk 0:01:44]}  cxd5 {[%clk 0:02:14]} 19. Qa4 {[%clk 0:01:39]}  Rxc1 {[%clk 0:01:51]} 20. Rxc1 {[%clk 0:01:40]}  a6 {[%clk 0:01:45]} 21. Qb3 {[%clk 0:01:32]}  b5 {[%clk 0:01:42]} 22. a4 {[%clk 0:01:30]}  Qd7 {[%clk 0:01:41]} 23. axb5 {[%clk 0:01:29]}  axb5 {[%clk 0:01:40]} 24. Bh3 {[%clk 0:01:19]}  Rc8 {[%clk 0:01:32]} 25. Rxc8+ {[%clk 0:01:17]}  Bxc8 {[%clk 0:01:32]} 26. Qc3 {[%clk 0:01:14]}  Kf7 {[%clk 0:01:30]} 27. Bd4 {[%clk 0:01:11]}  b4 {[%clk 0:01:27]} 28. Qc2 {[%clk 0:01:06]}  Qb7 {[%clk 0:01:24]} 29. e3 {[%clk 0:01:00]}  Bd7 {[%clk 0:01:24]} 30. Kf2 {[%clk 0:00:50]}  b3 {[%clk 0:01:23]} 31. Qc1 {[%clk 0:00:43]}  Bb5 {[%clk 0:01:16]} 32. f5 {[%clk 0:00:32]}  exf5 {[%clk 0:01:14]} 33. Bxf5 {[%clk 0:00:33]}  g6 {[%clk 0:01:09]} 34. e6+ {[%clk 0:00:32]}  Ke8 {[%clk 0:01:08]} 35. Bg4 {[%clk 0:00:28]}  Bc4 {[%clk 0:01:05]} 36. Qa1 {[%clk 0:00:27]}  Qa6 {[%clk 0:00:58]} 37. Qe1 {[%clk 0:00:20]}  Qa2 {[%clk 0:00:49]} 38. Kg2 {[%clk 0:00:19]}  h5 {[%clk 0:00:30]} 39. Bh3 {[%clk 0:00:19]}  Bd3 {[%clk 0:00:22]} 40. Qf2 {[%clk 0:00:18]}  Qb1 {[%clk 0:00:21]} 41. Qf7+ {[%clk 0:00:17]}  Kd8 {[%clk 0:00:22]} 42. Qg8+ {[%clk 0:00:17]}  Kc7 {[%clk 0:00:22]} 43. Be5+ {[%clk 0:00:17]}  Kb6 {[%clk 0:00:17]} 44. Qb8+ {[%clk 0:00:15]}  Ka6 {[%clk 0:00:17]} 45. Qc8+ {[%clk 0:00:12]}  Kb5 {[%clk 0:00:17]} 46. Qb7+ {[%clk 0:00:11]}  Ka4 {[%clk 0:00:14]} 47. Qc6+ {[%clk 0:00:09]}  Ka5 {[%clk 0:00:13]} 48. Bc7+ {[%clk 0:00:08]}  Kb4 {[%clk 0:00:13]} 49. Qb6+ {[%clk 0:00:06]}  Kc4 {[%clk 0:00:12]} 50. Qa6+ {[%clk 0:00:05]}  Kc5 {[%clk 0:00:12]} 51. Qb6+ {[%clk 0:00:05]}  Kc4 {[%clk 0:00:12]} 52. Qa6+ {[%clk 0:00:04]}  Kc5 {[%clk 0:00:12]} 53. Qa5+ {[%clk 0:00:04]}  Kc4 {[%clk 0:00:12]} 54. Qa4+ {[%clk 0:00:04]}  Kc5 {[%clk 0:00:12]} 55. Qa5+ {[%clk 0:00:03]}  Kc4 {[%clk 0:00:12]} 56. Qc3+ {[%clk 0:00:03]}  Kb5 {[%clk 0:00:12]} 0-1


[Site "https://www.chess.com"]

[Event "Titled Tuesday Blitz April 25 Early 2023"]
[White "Torres Dominguez, David"]
[Black "MaryanKyrychenko"]
[WhiteFideId "2220857"]
[WhiteElo "1999"]
[BlackElo "2532"]
[Result "0-1"]
[Round "04"]
[TimeControl "180+2"]
[Date "2023.04.25"]
[WhiteClock "0:00:05"]
[BlackClock "0:00:11"]

1. e4 {[%clk 0:02:59]}  c5 {[%clk 0:02:59]} 2. Nc3 {[%clk 0:02:58]}  a6 {[%clk 0:02:59]} 3. Nf3 {[%clk 0:02:58]}  e6 {[%clk 0:02:57]} 4. d4 {[%clk 0:02:57]}  cxd4 {[%clk 0:02:55]} 5. Nxd4 {[%clk 0:02:58]}  d6 {[%clk 0:02:54]} 6. Be2 {[%clk 0:02:58]}  Nf6 {[%clk 0:02:54]} 7. O-O {[%clk 0:02:58]}  Be7 {[%clk 0:02:55]} 8. f4 {[%clk 0:02:58]}  Nc6 {[%clk 0:02:49]} 9. Be3 {[%clk 0:02:58]}  Qc7 {[%clk 0:02:39]} 10. Qe1 {[%clk 0:02:51]}  Bd7 {[%clk 0:02:29]} 11. Qg3 {[%clk 0:02:50]}  Rg8 {[%clk 0:02:22]} 12. Rae1 {[%clk 0:02:37]}  O-O-O {[%clk 0:02:19]} 13. Nxc6 {[%clk 0:02:31]}  Bxc6 {[%clk 0:02:18]} 14. e5 {[%clk 0:02:30]}  Nd5 {[%clk 0:02:10]} 15. Nxd5 {[%clk 0:02:29]}  Bxd5 {[%clk 0:02:11]} 16. b3 {[%clk 0:02:20]}  dxe5 {[%clk 0:01:49]} 17. fxe5 {[%clk 0:02:18]}  f5 {[%clk 0:01:50]} 18. c4 {[%clk 0:01:59]}  Be4 {[%clk 0:01:43]} 19. Qf2 {[%clk 0:01:39]}  Qxe5 {[%clk 0:01:30]} 20. Bf3 {[%clk 0:01:33]}  Bb4 {[%clk 0:01:19]} 21. Rd1 {[%clk 0:01:13]}  Bd3 {[%clk 0:01:16]} 22. Bf4 {[%clk 0:00:38]}  Qc5 {[%clk 0:01:12]} 23. Be3 {[%clk 0:00:37]}  Qe7 {[%clk 0:01:02]} 24. Be2 {[%clk 0:00:35]}  Bxe2 {[%clk 0:00:55]} 25. Qxe2 {[%clk 0:00:36]}  Rxd1 {[%clk 0:00:53]} 26. Rxd1 {[%clk 0:00:36]}  Rd8 {[%clk 0:00:53]} 27. Rxd8+ {[%clk 0:00:33]}  Qxd8 {[%clk 0:00:53]} 28. h3 {[%clk 0:00:30]}  e5 {[%clk 0:00:49]} 29. Kh1 {[%clk 0:00:28]}  g6 {[%clk 0:00:39]} 30. c5 {[%clk 0:00:23]}  Qd5 {[%clk 0:00:37]} 31. Qc2 {[%clk 0:00:20]}  f4 {[%clk 0:00:35]} 32. Bg1 {[%clk 0:00:20]}  e4 {[%clk 0:00:29]} 33. Qb2 {[%clk 0:00:13]}  e3 {[%clk 0:00:26]} 34. Qh8+ {[%clk 0:00:12]}  Qd8 {[%clk 0:00:20]} 35. Qe5 {[%clk 0:00:08]}  Qd7 {[%clk 0:00:14]} 36. Qxf4 {[%clk 0:00:06]}  Bxc5 {[%clk 0:00:13]} 37. Bxe3 {[%clk 0:00:06]}  Qd1+ {[%clk 0:00:11]} 38. Kh2 {[%clk 0:00:05]}  Bd6 {[%clk 0:00:11]} 0-1


[Site "https://www.chess.com"]

[Event "Titled Tuesday Blitz April 25 Early 2023"]
[White "Kleiman, Jake"]
[Black "Aung Thant Zin"]
[WhiteFideId "2020041"]
[BlackFideId "13000063"]
[WhiteElo "2519"]
[BlackElo "2278"]
[Result "1-0"]
[Round "04"]
[TimeControl "180+2"]
[Date "2023.04.25"]
[WhiteClock "0:00:26"]
[BlackClock "0:00:15"]

1. b3 {[%clk 0:02:56]}  d5 {[%clk 0:02:59]} 2. Bb2 {[%clk 0:02:56]}  c5 {[%clk 0:02:59]} 3. e3 {[%clk 0:02:57]}  Nc6 {[%clk 0:02:59]} 4. Bb5 {[%clk 0:02:58]}  e6 {[%clk 0:02:58]} 5. Bxc6+ {[%clk 0:02:56]}  bxc6 {[%clk 0:02:57]} 6. Nf3 {[%clk 0:02:57]}  Nf6 {[%clk 0:02:57]} 7. O-O {[%clk 0:02:56]}  Be7 {[%clk 0:02:57]} 8. Ne5 {[%clk 0:02:57]}  Qc7 {[%clk 0:02:55]} 9. d3 {[%clk 0:02:57]}  O-O {[%clk 0:02:54]} 10. Nd2 {[%clk 0:02:57]}  Bd6 {[%clk 0:02:52]} 11. f4 {[%clk 0:02:55]}  Nd7 {[%clk 0:02:52]} 12. Ndf3 {[%clk 0:02:43]}  f6 {[%clk 0:02:50]} 13. Nxd7 {[%clk 0:02:42]}  Bxd7 {[%clk 0:02:49]} 14. Qe2 {[%clk 0:02:30]}  Rae8 {[%clk 0:02:47]} 15. h3 {[%clk 0:02:28]}  e5 {[%clk 0:02:44]} 16. fxe5 {[%clk 0:02:27]}  fxe5 {[%clk 0:02:45]} 17. e4 {[%clk 0:02:27]}  Rf6 {[%clk 0:02:25]} 18. Rf2 {[%clk 0:02:22]}  d4 {[%clk 0:02:15]} 19. Raf1 {[%clk 0:02:19]}  Ref8 {[%clk 0:02:15]} 20. Nd2 {[%clk 0:02:16]}  Be6 {[%clk 0:02:11]} 21. Bc1 {[%clk 0:02:09]}  Be7 {[%clk 0:02:06]} 22. a4 {[%clk 0:02:02]}  Qd7 {[%clk 0:02:02]} 23. Rxf6 {[%clk 0:02:01]}  Rxf6 {[%clk 0:02:01]} 24. Rxf6 {[%clk 0:02:01]}  Bxf6 {[%clk 0:02:02]} 25. Nf3 {[%clk 0:01:59]}  Qc7 {[%clk 0:01:46]} 26. Ba3 {[%clk 0:01:57]}  Qa5 {[%clk 0:01:46]} 27. Kf2 {[%clk 0:01:50]}  Qc3 {[%clk 0:01:32]} 28. Qd2 {[%clk 0:01:39]}  Qxd2+ {[%clk 0:01:22]} 29. Nxd2 {[%clk 0:01:39]}  Be7 {[%clk 0:01:22]} 30. Nf3 {[%clk 0:01:33]}  Bd6 {[%clk 0:01:22]} 31. Ke2 {[%clk 0:01:28]}  h6 {[%clk 0:01:20]} 32. Bc1 {[%clk 0:01:24]}  Kf7 {[%clk 0:01:19]} 33. Bd2 {[%clk 0:01:22]}  Bc8 {[%clk 0:01:13]} 34. g4 {[%clk 0:01:20]}  Ke6 {[%clk 0:01:11]} 35. Kf2 {[%clk 0:01:16]}  Be7 {[%clk 0:01:10]} 36. Kg3 {[%clk 0:01:15]}  g5 {[%clk 0:01:08]} 37. Ba5 {[%clk 0:01:12]}  Bd7 {[%clk 0:01:04]} 38. Nd2 {[%clk 0:01:07]}  Kf6 {[%clk 0:01:01]} 39. Bc7 {[%clk 0:01:05]}  Be6 {[%clk 0:00:59]} 40. Kf3 {[%clk 0:00:54]}  h5 {[%clk 0:00:57]} 41. gxh5 {[%clk 0:00:49]}  Bxh3 {[%clk 0:00:56]} 42. Nc4 {[%clk 0:00:49]}  Be6 {[%clk 0:00:49]} 43. Bxe5+ {[%clk 0:00:46]}  Kf7 {[%clk 0:00:46]} 44. Nd6+ {[%clk 0:00:43]}  Kg8 {[%clk 0:00:43]} 45. Nb7 {[%clk 0:00:38]}  Kf8 {[%clk 0:00:41]} 46. Bd6 {[%clk 0:00:35]}  Bxd6 {[%clk 0:00:39]} 47. Nxd6 {[%clk 0:00:36]}  Kg7 {[%clk 0:00:38]} 48. Nb7 {[%clk 0:00:34]}  Kh6 {[%clk 0:00:38]} 49. Nxc5 {[%clk 0:00:34]}  Bc8 {[%clk 0:00:39]} 50. b4 {[%clk 0:00:32]}  Kxh5 {[%clk 0:00:38]} 51. Kg3 {[%clk 0:00:32]}  Kh6 {[%clk 0:00:37]} 52. Nb3 {[%clk 0:00:32]}  Kg6 {[%clk 0:00:35]} 53. Nxd4 {[%clk 0:00:33]}  Bd7 {[%clk 0:00:34]} 54. c4 {[%clk 0:00:33]}  Kf6 {[%clk 0:00:34]} 55. Nb3 {[%clk 0:00:32]}  Ke5 {[%clk 0:00:33]} 56. Kf3 {[%clk 0:00:33]}  g4+ {[%clk 0:00:31]} 57. Ke3 {[%clk 0:00:33]}  Be8 {[%clk 0:00:25]} 58. d4+ {[%clk 0:00:34]}  Ke6 {[%clk 0:00:24]} 59. Kf4 {[%clk 0:00:34]}  Bg6 {[%clk 0:00:21]} 60. Nc5+ {[%clk 0:00:33]}  Kd6 {[%clk 0:00:21]} 61. e5+ {[%clk 0:00:31]}  Kc7 {[%clk 0:00:19]} 62. d5 {[%clk 0:00:29]}  Bc2 {[%clk 0:00:19]} 63. Kxg4 {[%clk 0:00:28]}  cxd5 {[%clk 0:00:18]} 64. cxd5 {[%clk 0:00:29]}  Bb3 {[%clk 0:00:17]} 65. d6+ {[%clk 0:00:28]}  Kc6 {[%clk 0:00:18]} 66. Kf5 {[%clk 0:00:27]}  a5 {[%clk 0:00:17]} 67. d7 {[%clk 0:00:26]}  Kc7 {[%clk 0:00:16]} 68. bxa5 {[%clk 0:00:26]}  Bd5 {[%clk 0:00:15]} 69. e6 {[%clk 0:00:26]} 1-0


[Site "https://www.chess.com"]

[Event "Titled Tuesday Blitz April 25 Early 2023"]
[White "Kollars, Dmitrij"]
[Black "Zhukova, Natalia"]
[WhiteFideId "12909572"]
[BlackFideId "14101513"]
[WhiteElo "2584"]
[BlackElo "2297"]
[Result "1-0"]
[Round "04"]
[TimeControl "180+2"]
[Date "2023.04.25"]
[WhiteClock "0:01:54"]
[BlackClock "0:00:02"]

1. d4 {[%clk 0:03:00]}  Nf6 {[%clk 0:02:57]} 2. c4 {[%clk 0:03:01]}  e6 {[%clk 0:02:56]} 3. Nf3 {[%clk 0:03:01]}  d5 {[%clk 0:02:56]} 4. g3 {[%clk 0:03:02]}  c5 {[%clk 0:02:50]} 5. Bg2 {[%clk 0:03:03]}  Nc6 {[%clk 0:02:48]} 6. cxd5 {[%clk 0:03:03]}  Nxd5 {[%clk 0:02:48]} 7. O-O {[%clk 0:03:03]}  Be7 {[%clk 0:02:47]} 8. dxc5 {[%clk 0:03:03]}  Bxc5 {[%clk 0:02:46]} 9. a3 {[%clk 0:03:03]}  Be7 {[%clk 0:02:42]} 10. e4 {[%clk 0:03:02]}  Nb6 {[%clk 0:02:38]} 11. Qe2 {[%clk 0:03:00]}  e5 {[%clk 0:02:34]} 12. Nc3 {[%clk 0:03:00]}  Bg4 {[%clk 0:02:33]} 13. Be3 {[%clk 0:03:00]}  Nd4 {[%clk 0:02:21]} 14. Bxd4 {[%clk 0:03:00]}  exd4 {[%clk 0:02:22]} 15. Rad1 {[%clk 0:03:00]}  O-O {[%clk 0:02:17]} 16. h3 {[%clk 0:02:55]}  Bxf3 {[%clk 0:02:13]} 17. Qxf3 {[%clk 0:02:56]}  Bf6 {[%clk 0:02:12]} 18. Ne2 {[%clk 0:02:56]}  Rc8 {[%clk 0:02:08]} 19. Qd3 {[%clk 0:02:56]}  Nc4 {[%clk 0:02:05]} 20. Rb1 {[%clk 0:02:55]}  Ne5 {[%clk 0:01:45]} 21. Qb3 {[%clk 0:02:55]}  d3 {[%clk 0:01:16]} 22. Nf4 {[%clk 0:02:54]}  Nc4 {[%clk 0:00:54]} 23. Rfd1 {[%clk 0:02:53]}  Nxb2 {[%clk 0:00:39]} 24. Rxb2 {[%clk 0:02:51]}  Bxb2 {[%clk 0:00:40]} 25. Qxb2 {[%clk 0:02:52]}  Rc2 {[%clk 0:00:36]} 26. Qb3 {[%clk 0:02:52]}  Qd4 {[%clk 0:00:20]} 27. Nxd3 {[%clk 0:02:05]}  Rc3 {[%clk 0:00:20]} 28. Qb1 {[%clk 0:02:00]}  Rfc8 {[%clk 0:00:06]} 29. Nf4 {[%clk 0:01:59]}  Qa4 {[%clk 0:00:04]} 30. Kh2 {[%clk 0:01:55]}  h6 {[%clk 0:00:04]} 31. Nd5 {[%clk 0:01:54]}  Rc2 {[%clk 0:00:02]} 32. Ne7+ {[%clk 0:01:54]} 1-0


[Site "https://www.chess.com"]

[Event "Titled Tuesday Blitz April 25 Early 2023"]
[White "Ashraf, Artin"]
[Black "Fan_Of_Chucky"]
[WhiteFideId "22514805"]
[WhiteElo "2188"]
[BlackElo "2426"]
[Result "1-0"]
[Round "04"]
[TimeControl "180+2"]
[Date "2023.04.25"]
[WhiteClock "0:02:09"]
[BlackClock "0:01:02"]

1. Nf3 {[%clk 0:03:00]}  Nf6 {[%clk 0:02:56]} 2. e3 {[%clk 0:03:00]}  g6 {[%clk 0:02:56]} 3. d4 {[%clk 0:03:00]}  Bg7 {[%clk 0:02:57]} 4. c4 {[%clk 0:02:59]}  d5 {[%clk 0:02:53]} 5. cxd5 {[%clk 0:02:56]}  Nxd5 {[%clk 0:02:54]} 6. e4 {[%clk 0:02:56]}  Nb6 {[%clk 0:02:51]} 7. Nc3 {[%clk 0:02:56]}  O-O {[%clk 0:02:50]} 8. Be2 {[%clk 0:02:54]}  Nc6 {[%clk 0:02:41]} 9. Be3 {[%clk 0:02:53]}  Bg4 {[%clk 0:02:39]} 10. Ng1 {[%clk 0:02:53]}  Bxe2 {[%clk 0:02:32]} 11. Ngxe2 {[%clk 0:02:51]}  Nc4 {[%clk 0:02:29]} 12. Qb3 {[%clk 0:02:50]}  Nxe3 {[%clk 0:01:57]} 13. fxe3 {[%clk 0:02:51]}  b6 {[%clk 0:01:42]} 14. O-O {[%clk 0:02:49]}  e6 {[%clk 0:01:39]} 15. e5 {[%clk 0:02:47]}  Qg5 {[%clk 0:01:36]} 16. Ne4 {[%clk 0:02:40]}  Qg4 {[%clk 0:01:30]} 17. N2g3 {[%clk 0:02:39]}  h5 {[%clk 0:01:24]} 18. Rf4 {[%clk 0:02:13]}  Nxd4 {[%clk 0:01:19]} 19. Qc4 {[%clk 0:02:12]}  Nf3+ {[%clk 0:01:04]} 20. gxf3 {[%clk 0:02:09]}  Qh3 {[%clk 0:01:02]} 21. Ng5 {[%clk 0:02:09]} 1-0


[Site "https://www.chess.com"]